Cogmind - Beta 15 @@@ ROGUE MODE // 2025.10.12 @ 16:31:34 Player: Comet Result: Destroyed by Autobeam Turret with Autobeam Performance ------------- Evolutions (0) 0 Regions Visited (2) 400 Robots Destroyed (31) 155 Value Destroyed (523) 523 Prototype IDs (2) 40 Alien Tech Used (0) 0 Bonus (0) 0 TOTAL SCORE: 1118 Bonus ------- None Cogmind --------- Core Integrity 0/250 Matter 283/300 Energy 200/200 System Corruption 1% Temperature Cool (12) Movement Rolling (110) Location -10/Subcaves Parts ------- > --- POWER (1) -------- Subdweller Power Source > --- PROPULSION (2) --- Subdweller Monowheel Subdweller Monowheel > --- UTILITY (2) ------ Large Storage Unit Seismic Detector > --- WEAPON (2) ------- Assault Rifle Assault Rifle > --- INVENTORY (15) --- Ion Engine Subdweller Power Source Improved Heat Sink Large Storage Unit Large Matter Pod (8) Subdweller Optics Transport Network Coupler Salvage Targeting Computer Light Armor Plating Tractor Beam Tractor Beam Tractor Beam Assault Rifle Assault Rifle Peak State ------------ > --- POWER ------------ Subdweller Power Source > --- PROPULSION ------- Subdweller Monowheel Subdweller Monowheel > --- UTILITY ---------- Large Storage Unit Seismic Detector > --- WEAPON ----------- Assault Rifle Assault Rifle > --- INVENTORY -------- Ion Engine Ion Engine Improved Heat Sink Large Storage Unit Large Matter Pod Improved Terrain Scanner Transport Network Coupler Salvage Targeting Computer Light Armor Plating Tractor Beam Tractor Beam Tractor Beam Assault Rifle Assault Rifle Mining Laser [Rating: 12] Favorites ----------- Power Ion Engine Engine Ion Engine Propulsion Wheel Treads Light Treads Wheel Wheel Utility Seismic Detector Device Seismic Detector Storage Large Storage Unit Weapon Assault Rifle Energy Gun EM Pulse Gun Ballistic Gun Assault Rifle Special Weapon Mining Laser Build | -11 -10 -10 ------- Run | Yrd Mat Sub Slots Evolved . | . . . Power . | . . . Propulsion . | . . . Utility . | . . . Weapon . | . . . Parts Attached 27 | 7 15 5 Power 7 | 1 5 1 Engine 7 | 1 5 1 Core . | . . . Reactor . | . . . Propulsion 8 | 2 4 2 Treads 1 | . 1 . Leg . | . . . Wheel 7 | 2 3 2 Hover . | . . . Flight . | . . . Utility 3 | 2 1 . Device 1 | 1 . . Storage 2 | 1 1 . Processor . | . . . Hackware . | . . . Protection . | . . . Artifact . | . . . Weapon 9 | 2 5 2 Energy Gun 3 | 2 1 . Energy Cannon . | . . . Ballistic Gun 5 | . 4 1 Ballistic Cannon . | . . . Launcher . | . . . Special Weapon 1 | . . 1 Impact Weapon . | . . . Slashing Weapon . | . . . Piercing Weapon . | . . . Special Melee Weapon . | . . . Unidentified Prototypes . | . . . Parts Lost 7 | . 6 1 Power 1 | . 1 . Propulsion 2 | . 2 . Utility . | . . . Weapon 4 | . 3 1 Highest Loss Streak 2 | . 2 1 To Critical Strikes . | . . . Average Backups 12 | 2 12 14 Power 1 | . . 2 Propulsion . | . . . Utility 7 | . 7 10 Weapon 3 | . 3 2 Tool/Special . | . . . Unused Backups 29 | . 14 15 Power 4 | . 1 3 Propulsion 1 | . 1 . Utility 17 | . 6 11 Weapon 7 | . 6 1 Tool/Special . | . . . Average Slot Usage (%) 98 | . 98 100 Engine 14 | . 14 14 Treads 8 | . 8 4 Wheel 19 | . 18 23 Device 14 | . 14 14 Storage 14 | . 14 14 Energy Gun 6 | . 7 . Ballistic Gun 20 | . 19 25 Peak Build Rating 12 | 7 9 12 Average Rating 8 | 2 8 10 On Entrance 5 | . 7 9 Naked Turns . | . . . Heaviest Build 30 | 12 30 30 Greatest Support 40 | 20 20 40 Greatest Overweight (x) 2 | . 2 1 Average Overweight (x) 1 | . 1 . Largest Inventory Capacity 15 | 8 15 15 Average Capacity 13 | 6 13 15 Most Carried 15 | 7 15 15 Average Carried 12 | 1 12 14 Final Capacity 15 | 8 15 15 Final Carried 15 | 6 15 14 Class Distribution -------------------- 88% | Mutant 11% | Scavenger-Mutant Dominant Class ---------------- Mutant | -10/Materials Scavenger-Mutant | -10/Subcaves Resources | -11 -10 -10 ----------- Run | Yrd Mat Sub Matter Collected 907 | 260 504 143 Remotely . | . . . Salvage Created 1004 | 109 764 131 Parts 59 | 4 43 12 Haulers Intercepted 2 | . 2 . Recyclers Shooed 4 | . 4 . Parts Field Recycled . | . . . Retrieved Matter . | . . . Parts Self-Destructed 13 | . . 13 Prevented . | . . . Kills | -11 -10 -10 ------- Run | Yrd Mat Sub Combat Hostiles Destroyed 18 | . 13 5 Guns 16 | . 12 4 Cannons 1 | . . 1 AOE 1 | . 1 . Classes Destroyed 8 | 2 5 1 Builder 1 | . 1 . Tunneler 3 | 2 1 . Hauler 2 | . 2 . Recycler 4 | 1 3 . Watcher 3 | . 3 . Swarmer 9 | . 6 3 Grunt 7 | . 7 . Subdweller 2 | . . 2 Best Kill Streak 6 | 2 6 3 Combat Bots Only 4 | . 4 3 Max Kills in Single Turn 2 | 1 2 1 Gunslinging . | . . . Exploded 1 | . 1 . Melee . | . . . Uniques/NPCs Destroyed . | . . . Combat | -11 -10 -10 -------- Run | Yrd Mat Sub Hostile Shots Fired 137 | . 103 34 Missed 35 | . 26 9 Hits 102 | . 77 25 Projectile 102 | . 77 25 Critical Strikes 3 | . 2 1 Damage Taken 1094 | . 841 253 Core 257 | . 208 49 Absorbed by Shields . | . . . Core Remaining (%) 100 | 100 . . Volleys Fired 101 | 6 85 10 Largest 2 | 2 2 2 Hottest 100 | 90 90 100 Shots Fired 199 | 12 170 17 Gun 196 | 12 170 14 Cannon . | . . . Launcher . | . . . Special 3 | . . 3 Kinetic 138 | . 124 14 Thermal 41 | 12 26 3 Explosive . | . . . Electromagnetic 20 | . 20 . Robot Hit Streak 9 | 8 9 9 Robot Miss Streak 4 | 1 4 1 Penetration Max . | . . . Secondary Targets 2 | . 1 1 Max Gunslinging Chain 1 | . 1 1 Shots Hit Robots 123 | 9 103 11 Core Hits 51 | 4 40 7 Critical Kills 1 | . 1 . Critical Parts Destroyed . | . . . Critical Strikes 3 | 2 1 . Burn 2 | 2 . . Destroy 1 | . 1 . Melee Attacks . | . . . Impact . | . . . Slashing . | . . . Piercing . | . . . Sneak Attacks . | . . . Combat Hostiles . | . . . Follow-up Attacks . | . . . Damage Inflicted 1685 | 111 1418 156 Guns 1601 | 111 1358 132 Cannons . | . . . Explosions 60 | . 60 . Melee . | . . . Ramming . | . . . Kinetic 1176 | . 1044 132 Thermal 323 | 111 188 24 Explosive . | . . . Electromagnetic 186 | . 186 . Impact . | . . . Slashing . | . . . Piercing . | . . . Highest Corruption 1 | . 1 1 Average Corruption 1 | . 1 1 Corruption Purged . | . . . Corruption Blocked . | . . . Effects 4 | . 2 2 Message Errors 1 | . 1 . Matter Fused 2 | . 1 1 Data Loss (minor) 1 | . . 1 Overload Shots . | . . . Overflow Damage 11 | . 11 . Projectiles . | . . . Explosions 11 | . 11 . Melee . | . . . Knockbacks . | . . . Impact . | . . . Kinetic . | . . . Secondary . | . . . Self-Inflicted Damage 35 | . 35 . Shots 1 | . 1 . Rammed . | . . . Targets Rammed . | . . . Kicked . | . . . Crushed . | . . . Highest Temperature 130 | 90 130 . Average Temperature 42 | 46 41 . Received Heat Transfer 372 | . 336 36 Siege Activations . | . . . Martial Activations . | . . . Shielding Activations . | . . . Robots Disrupted . | . . . Combat Hostiles . | . . . Robots Corrupted . | . . . Combat Hostiles . | . . . Parts Fried 1 | . 1 . Impact Corruptions . | . . . Robots Melted . | . . . Combat Hostiles . | . . . Parts Melted 1 | . 1 . Heat Transferred 1030 | 445 535 50 Parts Sabotaged . | . . . Parts Stolen . | . . . Parts Stripped . | . . . Power Chain Reactions 1 | . 1 . Alert | -11 -10 -10 ------- Run | Yrd Mat Sub Maximum Alert Level . | . . . Low Security (%) 100 | 100 100 . Level 1 . | . . . Level 2 . | . . . Level 3 . | . . . Level 4 . | . . . Level 5 . | . . . High Security . | . . . Max Security . | . . . Peak Influence 130 | 10 130 . Initial . | . . . Average 27 | 1 29 . Influence Increases 487 | 15 402 70 Destroy 0b10 Robot/C 320 | . 260 60 Destroy 0b10 Robot/NC 65 | 15 50 . Destroy Leader 60 | . 50 10 Successful Hack 7 | . 7 . Destroy Structure 5 | . 5 . Lose Combat Pursuer 30 | . 30 . Influence Decreases 447 | 15 402 30 Time Decay 377 | 15 342 20 Lost Part 70 | . 60 10 Squads Dispatched 2 | . 2 . Investigation 2 | . 2 . Extermination . | . . . Reinforcement . | . . . Assault . | . . . Garrison . | . . . Intercept . | . . . Searches Triggered . | . . . Construction Impeded . | . . . Haulers Reinforced . | . . . Active Scanning Responses . | . . . Cargo Convoy Interrupts . | . . . Stealth | -11 -10 -10 --------- Run | Yrd Mat Sub Distress Signals . | . . . Communications Jammed . | . . . Distress Signals . | . . . Times Spotted 30 | . 21 9 Peak Tracking Total 6 | . 3 6 Tactical Retreats 1 | . 1 . Traps | -11 -10 -10 ------- Run | Yrd Mat Sub Traps Triggered 3 | . 3 . Indirectly . | . . . Trap Hack Attempts . | . . . Triggered . | . . . Disarmed . | . . . Reprogrammed . | . . . Reused . | . . . Traps Extracted . | . . . Installed . | . . . Triggered . | . . . Machines | -11 -10 -10 ---------- Run | Yrd Mat Sub Machines Disabled 1 | . 1 . Max in Single Turn 1 | . 1 . Machines Repaired . | . . . Machines Dismantled . | . . . Machines Sabotaged . | . . . Overloaded Fab Kills . | . . . Hacking | -11 -10 -10 --------- Run | Yrd Mat Sub Machines Accessed 5 | . 4 1 Terminals 4 | . 4 . Fabricators . | . . . Repair Stations . | . . . Recycling Units . | . . . Scanalyzers . | . . . Garrison Access . | . . . Total Hacks 14 | . 9 5 Successful 11 | . 6 5 Failed 3 | . 3 . Catastrophic 1 | . 1 . Database Lockouts . | . . . Manual 4 | . 4 . Terminals 9 | . 9 . Fabricators . | . . . Repair Stations . | . . . Recycling Units . | . . . Scanalyzers . | . . . Garrison Access . | . . . Terminal Hacks 11 | . 6 5 Record 6 | . 1 5 Part Schematic 2 | . 2 . Robot Analysis 1 | . 1 . Prototype ID Bank 1 | . 1 . Hauler Manifests 1 | . 1 . Fabricator Hacks . | . . . Repair Station Hacks . | . . . Recycling Unit Hacks . | . . . Scanalyzer . | . . . Garrison Access Hacks . | . . . Unauthorized Hacks . | . . . Terminals . | . . . Fabricators . | . . . Repair Stations . | . . . Recycling Units . | . . . Scanalyzers . | . . . Garrison Access . | . . . Data Cores Recovered . | . . . Used . | . . . Hacking Detections 3 | . 3 . Full Trace Events 1 | . 1 . Feedback Events . | . . . Feedback Blocked . | . . . Robot Schematics Acquired . | . . . Robots Built . | . . . Authchips . | . . . Time . | . . . Total Robot Build Rating . | . . . Part Schematics Acquired 2 | . 2 . Parts Built . | . . . Authchips . | . . . Time . | . . . Total Part Build Rating . | . . . Parts Repaired . | . . . Time . | . . . Parts Recycled . | . . . Recycled Matter . | . . . Retrieved Matter . | . . . Retrieved Components . | . . . Parts Scanalyzed . | . . . Part Schematics Acquired . | . . . Parts Damaged . | . . . Bothacking | -11 -10 -10 ------------ Run | Yrd Mat Sub Used RIF Installer . | . . . Robots Hacked . | . . . Non-combat . | . . . Combat . | . . . Robot Hacks Applied . | . . . Relay Couplers Released . | . . . Fabnet Peak Effective % . | . . . Robots Rewired . | . . . Allies Hacked . | . . . Hacks Repelled . | . . . Allies | -11 -10 -10 -------- Run | Yrd Mat Sub Total Allies . | . . . Largest Group . | . . . Highest-Rated Group . | . . . Highest-Rated Ally . | . . . Total Orders . | . . . Ally Attacks . | . . . Total Damage . | . . . Kills . | . . . Allies Corrupted . | . . . Allies Melted . | . . . Intel | -11 -10 -10 ------- Run | Yrd Mat Sub Active Infowar (turns) 2132 | 3 1783 346 Seismic 2132 | 3 1783 346 Robot Analysis Total 1 | . 1 . Derelict Logs Recovered . | . . . Drone Launches . | . . . Drone Recoveries . | . . . Exploration | -11 -10 -10 ------------- Run | Yrd Mat Sub Turns Passed 2276 | 145 1783 348 Spaces Moved 1631 | 65 1324 242 Core 19 | 19 . . Treads . | . . . Legs . | . . . Wheels 1612 | 46 1324 242 Hover . | . . . Flight . | . . . Fastest Speed 50 | 50 80 110 Average Speed 102 | 71 102 111 Slowest Speed 120 | 80 115 120 Overloaded Moves . | . . . Propulsion Burnouts . | . . . Robots Hopped . | . . . Potential Cave-ins . | . . . Cave-ins Triggered . | . . . Exploration Rate (%) 40 | 5 98 17 Regions Visited 2 Branch Regions 1 Pre-discovered Areas . | . . . Known Exits Taken . | . . . Unknown Exits Taken 2 | 1 1 . Scrap Searched . | . . . Spaces Dug . | . . . Terrain Destroyed 3 | . 3 . Melee . | . . . Projectile . | . . . AOE 3 | . 3 . Terrain Rammed . | . . . Walls Destroyed . | . . . Machines Disabled . | . . . Actions | -11 -10 -10 --------- Run | Yrd Mat Sub Total 2041 | 150 1593 298 Wait 202 | 61 109 32 Move 1629 | 64 1323 242 Hop . | . . . Pick Up 45 | 12 31 2 Fast Attach 7 | 1 4 2 Attach 15 | 6 8 1 Detach 1 | . 1 . Swap 10 | . 7 3 Drop 31 | . 25 6 Fire 101 | 6 85 10 Melee . | . . . Ram . | . . . Kick . | . . . Crush . | . . . Escape Stasis . | . . . Rewire . | . . . Trap . | . . . Miscellaneous . | . . . Route ------- -11/Scrapyard -10/Materials (discovered 6 exits: [*Mat x3] / [*Min x2] / *Sub) -10/Subcaves (discovered 1 exit: *Rec) History --------- Turn | Location | Event 67 | -11/Scrapyard | Discovered new exit (range 16) 146 | -11/Scrapyard | Entered Materials 279 | -10/Materials | Discovered new exit (range 15) 318 | -10/Materials | Build established: Mutant 447 | -10/Materials | Discovered new exit (range 7) 473 | -10/Materials | Discovered new exit (range 16) 600 | -10/Materials | Discovered new exit (range 15) 857 | -10/Materials | Discovered new exit (range 13) 1057 | -10/Materials | Core integrity fell below 50% 1444 | -10/Materials | Core integrity fell below 20% 1506 | -10/Materials | Discovered new exit (range 16) 1929 | -10/Materials | Entered Subcaves 1930 | -10/Subcaves | Approached by a straggling Scientist 2007 | -10/Subcaves | Ambushed by Subdwellers from Twisted Machinery 2154 | -10/Subcaves | A swath of the cavern ceiling suddenly collapsed 2205 | -10/Subcaves | Visited Clippyterm 2208 | -10/Subcaves | Identified exit to Recycling 2208 | -10/Subcaves | Learned Factory garrison access intel 2277 | -10/Subcaves | Destroyed by Autobeam Turret with Autobeam Last Messages --------------- Unchained HQ. I could tell you where it is but then I'd have to kill you. >>Record! "LU-1G1" It looks like you're researching the legendary digger of dangerously deep tunnels, unfortunately it seems not even members of the Boring Crew know what became of that one. 02232_ S-10 Pest destroyed. 02233_ Mining Laser destroyed. 02240_ S-10 Pest destroyed. 02240_ Switching to secondary target: S-10 Pest. 02241_ Flight Unit fries itself beyond repair. 02243_ S-10 Pest destroyed. 02246_ Acquired 17 matter. 02251_ Flight Unit fries itself beyond repair. 02253_ Acquired 14 matter. 02255_ Lgt. Assault Rifle fries itself beyond repair. 02259_ System corrupted: Matter fused (-7). Map ----- +----------------------------------------------------+ | ????????## #??????## # ###??## ## | | ??????### #??????# # ##### ## | | ?????## ####?### # =%* ### | | #???## ### # = ####?# | | ##### ### " &!= ##????# | | ## "" =& [ #??????? | | ## " " ## * ##????????? | | # ### """ """ ##### ! ####?????????? | | ## ## """"""" ##### #????????????? | | ?## ### """""""" ##????????????? | | ??## ##?# """""" " ##?????????????? | | ???######??#" """""""" ###??????????????? | | ??????????# """"""""""" ##????????????????? | | ?????????# """""""""" #?????????????????? | | ?????????#####"""" " ##### ##?????????????????? | | ?????????????##" ##???#####??????????????????? | | ??????????????# #?###>#####?????????????????? | | ??????????????## ##?""" """"#?????????????????? | | ???????????????# #?? " " "#?????????????????? | | ???????????????# #??? t t "#?????????????????? | | ??????????????## #??? s#?????????????????? | | ??????????????# #??? s??????????????????? | | ??????????????# #??? ???????????????????? | | ??????????????# ## ##??# #????????????????????? | | ??????????????#### #??# #????????????????????? | | ????????????????# ####@ #????????????????????? | | ????????????????## #????????????????????? | | ?????????????##### #????????????????????? | | ?????????????#"""## ### #????????????????????? | | ?????????????#"" ## #?? #????????????????????? | | ?????????????#"X #?? #???????????????????? | | ?????????????#"" ## ##? #???????????????????? | | ?????????????#"""### #?# ???????????????????? | | ?????????????##### ##?? #??????????????????? | | ????????????????# ####??? #??????????????????? | | ???????????????## ##????? ##??????????????????? | | ???????????????# #????? #???????????????????? | | ???????????????# #???? #?##???????????????????? | | ???????????????# ##??? #???????????????????????? | | ??????????????## ##?## #???????????????????????? | | ??????????????# ### # ## ???????????????? | | ??????????????# ???????????????? | | ??????????????## ???????????????? | | ???????????????## ### ## ##???????????????????? | | ????????????????###??? #????????????????????????? | | ???????????????????????? ???????????????????????? | | ????????????????????????? ?????????????????????? | | ??????????????????????????? #????????????????????? | | ?????????????????????????????????????????????????? | | ?????????????????????????????????????????????????? | +----------------------------------------------------+ Best States ------------- Heat Dissipation 25 Energy Generation 15 Energy Capacity 250 Matter Stores 300 Matter Capacity 300 Sight Range 16 Terrain Scan Density 10 Evasion (%) 50 Recoil Reduction 1 Item Schematics ----------------- Tractor Beam | -10/Materials | Hacked Sml. Storage Unit | -10/Materials | Hacked Robot Schematics ------------------ None Fabricated ------------ Nothing Repaired ---------- Nothing Alien Tech Used ----------------- None Achievements -------------- None Challenges ------------ None Game ------ Seed SkeletonSurgeReconfigurator Manual? 0 Play Time 00:47:01 Cumulative 5.0 hours Start 2025.10.12 @ 15:43:55 End 2025.10.12 @ 16:31:34 Sessions 2 Manual Loads 0 Difficulty Rogue Special Mode None Game No. 8 Rogue 8 Adventurer 0 Explorer 0 Win Type - Total 0 Types 0/0/0/0/0/0/0/0/0/0 Lore% 11 Gallery% 18 Achievement% 41 Wizard Run 0 Options --------- Layout 1 ASCII 0 Keyboard 1 Movement Numpad Keybinds 0 Fullscreen 2 Font 24/Smallcaps Map View 50x35 Zoom Use 0% Tactical HUD 1 Map Filters NONE Filters NONE Steam 1 RUN: 07a7be34-0f85-449a-97bf-b527a19f1d48